bitfinex-derivatives/quotes_ETHF0:USTF0_20250417
["timestamp","ask_amount","ask_price","bid_price","bid_amount"]
[1744913801188,1.24079742,1612.0,1611.9,5.72087]
[1744913801883,7.42e-06,1612.0,1611.9,5.72087]
[1744913802082,1.24079742,1612.0,1611.9,5.72087]
[1744913802285,7.42e-06,1612.0,1611.9,5.72087]
[1744913802791,7.42e-06,1612.0,1611.9,8.34097]
[1744913804985,7.42e-06,1612.0,1611.9,10.97107]
[1744913805686,1.24079742,1612.0,1611.9,10.97107]
[1744913805885,7.42e-06,1612.0,1611.9,10.97107]
[1744913806999,7.42e-06,1612.0,1611.9,15.97107]
[1744913808192,7.42e-06,1612.0,1611.9,10.97107]
[1744913808390,1.24079742,1612.0,1611.9,10.97107]
[1744913808592,1.24079742,1612.0,1611.9,8.35097]
[1744913808793,3.76539742,1612.0,1611.9,8.35097]
[1744913810394,3.76539742,1612.0,1611.9,5.72087]
[1744913811195,3.76539742,1612.0,1611.9,4.48]
[1744913811385,3.76539742,1612.0,1611.9,5.72087]
[1744913811588,3.76539742,1612.0,1611.9,4.48]
[1744913811790,3.76539742,1612.0,1611.9,5.72087]
[1744913815199,3.76539742,1612.0,1611.9,8.47797]
[1744913816700,6.97319742,1612.0,1611.9,8.47797]
[1744913820603,5.73240742,1612.0,1611.9,8.47797]
[1744913820802,7.42e-06,1612.0,1611.9,8.47797]
[1744913821726,7.42e-06,1612.0,1611.9,13.47797]
[1744913823102,1.24079742,1612.0,1611.9,3.99797]
[1744913823302,1.24079742,1612.0,1611.9,8.42597]
[1744913823506,3.95449742,1612.0,1611.9,4.428]
[1744913823838,7.16229742,1612.0,1611.9,5.66887]
[1744913824002,3.95449742,1612.0,1611.9,5.66887]
[1744913824198,7.16229742,1612.0,1611.9,5.66887]
[1744913825106,7.23729742,1612.0,1611.9,5.66887]
[1744913825496,5.99650742,1612.0,1611.9,5.66887]
[1744913825706,0.07500742,1612.0,1611.9,5.66887]
[1744913826213,1.24079742,1612.0,1611.9,5.66887]
[1744913826709,7.42e-06,1612.0,1611.9,4.428]
[1744913826908,7.08019742,1612.0,1611.9,5.66887]
[1744913827109,7.15519742,1612.0,1611.9,5.66887]
[1744913827609,7.94634757,1612.0,1611.9,5.66887]
[1744913828124,4.07395757,1612.0,1611.9,5.66887]
[1744913828412,5.23974757,1612.0,1611.9,5.66887]
[1744913828615,7.87134757,1612.0,1611.9,5.66887]
[1744913830115,7.87134757,1612.0,1611.9,8.23467]
[1744913831717,6.63055757,1612.0,1611.9,8.23467]
[1744913832013,7.87134757,1612.0,1611.9,8.23467]
[1744913833914,6.63055757,1612.0,1611.9,8.23467]
[1744913834319,7.87134757,1612.0,1611.9,8.23467]
[1744913834516,7.08019742,1612.0,1611.9,8.23467]
[1744913834713,7.42e-06,1612.0,1611.9,13.23467]
[1744913835115,7.42e-06,1612.0,1611.9,8.23467]
[1744913836660,10.25207262,1612.4,1612.3,1.24056]
[1744913836824,10.25207262,1612.4,1612.3,8.87736]
[1744913837015,10.25207262,1612.4,1612.3,13.87736]
[1744913837519,10.25207262,1612.4,1612.3,19.32776]
[1744913838419,10.25207262,1612.4,1612.3,14.32776]
[1744913838618,0.00929742,1612.5,1612.4,1.24048]
[1744913838817,0.00929742,1612.5,1612.4,4.17668]
[1744913840332,0.00929742,1612.5,1612.4,9.63336602]
[1744913841328,0.00929742,1612.5,1612.4,9.17668]
[1744913841627,0.00929742,1612.5,1612.4,4.17668]
[1744913846635,2.81819742,1612.5,1612.4,4.17668]
[1744913847435,4.05859742,1612.5,1612.4,1.24048]
[1744913847829,2.81819742,1612.5,1612.4,1.24048]
[1744913848223,2.81819742,1612.5,1612.4,4.10298]
[1744913848422,0.00929742,1612.5,1612.4,4.10298]
[1744913848730,0.00929742,1612.5,1612.4,7.02788]
[1744913849436,0.00929742,1612.5,1612.4,4.10298]
[1744913849636,2.76229742,1612.5,1612.4,4.10298]
[1744913850136,5.70879742,1612.5,1612.4,1.24048]
[1744913850834,0.00929742,1612.5,1612.4,4.12268]
[1744913854236,7.42e-06,1612.5,1612.4,9.12268]
[1744913854445,7.42e-06,1612.5,1612.4,95.10268]
[1744913855446,7.42e-06,1612.5,1612.4,90.10268]
[1744913859147,7.42e-06,1612.5,1612.4,95.10268]
[1744913862146,5.508,1613.0,1612.9,1.2401]
[1744913862347,8.3842,1613.0,1612.9,8.8729]
[1744913862543,8.3842,1613.0,1612.9,5.6651]
[1744913862745,8.3842,1613.0,1612.9,8.8729]
[1744913865362,5.6199,1613.0,1612.9,8.8729]
[1744913865536,5.6199,1613.0,1612.9,11.8664]
[1744913865739,5.6199,1613.0,1612.9,5.6651]
[1744913869750,5.6199,1613.0,1612.9,8.6483]
[1744913872354,0.00929742,1613.1,1613.0,1.24002]
[1744913872552,0.00929742,1613.1,1613.0,7.22012]
[1744913875256,0.00929742,1613.1,1613.0,1.24002]
[1744913875458,0.00929742,1613.1,1613.0,4.01932]
[1744913877455,7.42e-06,1613.1,1613.0,9.01932]
[1744913879151,4.11893517,1613.7,1613.6,1.23956]
[1744913879353,2.85987517,1613.7,1613.6,8.87036]
[1744913879553,3.09914,1613.5,1612.9,4.423]
[1744913879759,3.2078,1613.1,1613.0,1.24002]
[1744913879948,4.44766,1613.3,1613.0,5.66202]
[1744913880261,3.2078,1613.2,1613.1,1.23987]
[1744913880453,6.0457,1613.2,1613.1,1.23987]
[1744913880655,11.0457,1613.2,1613.1,1.23987]
[1744913881158,11.1207,1613.2,1613.1,1.23987]
[1744913881555,6.1207,1613.2,1613.1,1.23987]
[1744913882156,6.0457,1613.2,1613.1,1.23987]
[1744913882861,6.0457,1613.2,1613.1,4.01207]
[1744913883060,2.8379,1613.2,1613.1,4.01207]
[1744913885557,3.2078,1613.5,1613.1,10.87202]
[1744913885863,5.5961,1613.8,1613.7,1.23948]
[1744913886057,8.8039,1613.8,1613.7,5.66148]
[1744913886253,6.0349,1613.8,1613.7,5.66148]
[1744913886651,8.23578137,1613.9,1613.8,1.23941]
[1744913886954,8.23578137,1613.9,1613.8,4.06661]
[1744913887156,4.52949137,1613.9,1613.8,9.55697885]
[1744913887354,10.25207262,1614.0,1613.9,1.23933]
[1744913887559,3.59725263,1614.0,1613.9,7.00953]
[1744913887755,1.19932263,1614.0,1613.9,7.00953]
[1744913887955,4.40712263,1614.0,1613.9,4.10973]
[1744913888560,1.19932263,1614.0,1613.9,4.10973]
[1744913888863,2.63e-06,1614.0,1613.9,4.10973]
[1744913889160,3.2078,1614.3,1614.2,1.2391]
[1744913889369,3.2078,1614.3,1614.2,5.6611]
[1744913890051,3.0087,1614.4,1614.3,1.23902]
[1744913890258,12.2292426,1614.8,1614.5,1.23887]
[1744913890457,3.2078,1614.6,1614.5,1.23887]
[1744913890650,3.2078,1614.6,1614.5,5.67016742]
[1744913890876,6.0942,1614.6,1614.5,5.67016742]
[1744913891272,2.8864,1614.6,1614.5,5.67016742]
[1744913892061,12.33299,1614.6,1614.5,0.00929742]
[1744913892266,1.23894,1614.4,1614.3,4.421]
[1744913892459,1.23905,1614.3,1614.1,5.66014]
[1744913892659,10.235,1614.2,1614.1,4.421]
[1744913892977,8.9959,1614.2,1614.1,5.66017]
[1744913893268,14.0709,1614.2,1614.1,5.66017]
[1744913893657,15.31,1614.2,1614.1,5.66017]
[1744913893962,14.0709,1614.2,1614.1,5.66017]
[1744913894863,14.0709,1614.2,1614.1,4.421]
[1744913894864,15.31,1614.2,1614.1,4.421]
[1744913895065,1.23917,1614.1,1614.0,1.24854742]
[1744913895264,3.99947,1614.1,1614.0,1.24854742]
[1744913895466,2.7603,1614.1,1614.0,1.24854742]
[1744913895761,2.7603,1614.1,1614.0,4.06624742]
[1744913896667,2.7603,1614.1,1614.0,1.24854742]
[1744913897059,2.7603,1614.1,1614.0,4.17614742]
[1744913899168,2.8353,1614.1,1614.0,4.17614742]
[1744913900369,2.8353,1614.1,1614.0,1.24854742]
[1744913901767,4.07447,1614.1,1614.0,1.24854742]
[1744913902380,4.07447,1614.1,1614.0,0.00929742]
[1744913902571,4.07447,1614.1,1614.0,1.24854742]
[1744913904973,2.8353,1614.1,1614.0,1.24854742]
[1744913905271,4.07447,1614.1,1614.0,1.24854742]
[1744913906061,4.07447,1614.1,1614.0,0.00929742]
[1744913906266,4.07447,1614.1,1614.0,1.24854742]
[1744913906469,2.8353,1614.1,1614.0,1.24854742]
[1744913906671,4.07447,1614.1,1614.0,4.08884742]
[1744913909670,2.8353,1614.1,1614.0,4.08884742]
[1744913909877,0.075,1614.1,1614.0,4.08884742]
[1744913910179,0.00929742,1614.3,1614.2,1.2391]
[1744913910373,0.00929742,1614.3,1614.2,5.6721]
[1744913910974,0.00929742,1614.3,1614.2,8.5572]
[1744913912976,0.00929742,1614.3,1614.2,13.5572]
[1744913913478,7.42e-06,1614.3,1614.2,13.5572]
[1744913916177,7.42e-06,1614.3,1614.2,8.5572]
[1744913919883,1.23902742,1614.3,1614.2,4.433]
[1744913920082,1.23917,1614.1,1614.0,8.49683742]
[1744913920684,7.47787,1614.2,1614.1,1.23917]
[1744913920980,1.23917,1614.1,1614.0,1.24848742]
[1744913921181,4.24007,1614.1,1614.0,0.00929742]
[1744913921380,9.24007,1614.1,1614.0,0.00929742]
[1744913922887,0.075,1614.1,1614.0,5.68054742]
[1744913923293,3.2078,1614.2,1614.1,1.23917]
[1744913923587,3.2078,1614.2,1614.1,4.04757]
[1744913924087,3.2828,1614.2,1614.1,4.04757]
[1744913925019,4.5219,1614.2,1614.1,4.04757]
[1744913926187,4.4469,1614.2,1614.1,4.04757]
[1744913926579,3.2078,1614.2,1614.1,4.04757]
[1744913927182,4.5219,1614.2,1614.1,4.04757]
[1744913927385,4.5219,1614.2,1614.1,2.8084]
[1744913927591,7.4497,1614.2,1614.1,2.8084]
[1744913927887,7.4497,1614.2,1614.1,4.04757]
[1744913930889,7.4497,1614.2,1614.1,2.8084]
[1744913932592,7.4497,1614.2,1614.1,4.04757]
[1744913932788,6.2106,1614.2,1614.0,7.42e-06]
[1744913933089,1.23964,1613.5,1613.4,1.23969]
[1744913933290,1.23971,1613.4,1613.3,11.21400458]
[1744913933494,4.08301,1613.4,1613.3,11.21400458]
[1744913934086,4.08301,1613.4,1613.3,8.22520458]
[1744913934289,4.15801,1613.4,1613.3,8.22520458]
[1744913936991,12.3513,1613.4,1613.1,30.94223617]
[1744913937200,1.23994,1613.1,1613.0,20.31912455]
[1744913937397,5.71194,1613.1,1613.0,18.08999455]
[1744913937598,5.71194,1613.1,1612.5,4.433]
[1744913937599,1.24033,1612.6,1612.5,4.433]
[1744913937902,4.44813,1612.6,1612.5,4.433]
[1744913938092,1.2404,1612.5,1612.4,11.02617062]
[1744913938291,4.1068,1612.5,1612.4,11.03546804]
[1744913939292,4.1068,1612.5,1612.4,8.22426804]
[1744913940101,12.0671,1612.5,1612.4,5.25153804]
[1744913940400,14.8615,1612.5,1612.4,5.25153804]
[1744913941089,9.8615,1612.5,1612.4,5.25153804]
[1744913941295,1.3154,1612.5,1612.4,5.25153804]
[1744913941495,1.3154,1612.5,1612.4,8.02003804]
[1744913942201,1.3154,1612.5,1612.4,2.77779742]
[1744913944093,3.2078,1612.6,1612.5,1.2404]
[1744913944307,0.00929742,1612.7,1612.6,1.24033]
[1744913944500,0.00929742,1612.7,1612.6,4.13523]
[1744913944893,1.24954742,1612.7,1612.6,4.13523]
[1744913945499,0.00929742,1612.7,1612.6,4.13523]
[1744913945803,0.00929742,1612.7,1612.6,9.13523]
[1744913946904,4.44778,1613.1,1612.7,3.10051]
[1744913947103,1.23991,1613.2,1613.1,1.23991]
[1744913947300,1.23987,1613.2,1613.1,5.71391]
[1744913948207,1.31487,1613.2,1613.1,5.71391]
[1744913948392,0.075,1613.2,1613.1,5.71391]
[1744913948597,1.31487,1613.2,1613.1,5.71391]
[1744913949307,0.075,1613.2,1613.1,5.71391]
[1744913949804,1.31487,1613.2,1613.1,5.71391]
[1744913950300,0.075,1613.2,1613.1,5.71391]
[1744913950506,1.31487,1613.2,1613.1,5.71391]
[1744913950700,0.075,1613.2,1613.1,5.71391]
[1744913950903,1.31487,1613.2,1613.1,5.71391]
[1744913951407,1.31487,1613.2,1613.1,4.474]
[1744913951604,1.31487,1613.2,1613.1,6.23994]
[1744913951605,0.075,1613.2,1613.1,6.23994]
[1744913951804,0.00929742,1613.3,1613.2,1.23987]
[1744913952000,0.00929742,1613.3,1613.2,7.38477]
[1744913952201,0.00929742,1613.3,1613.2,12.38477]
[1744913953007,0.00929742,1613.3,1613.2,7.38477]
[1744913953210,0.00929742,1613.3,1613.2,12.38477]
[1744913957514,0.00929742,1613.3,1613.2,7.38477]
[1744913962617,4.44726,1613.8,1613.7,1.23948]
[1744913962809,4.44726,1613.8,1613.7,5.71248]
[1744913963009,9.44726,1613.8,1613.7,4.473]
[1744913963225,12.55626,1613.8,1613.7,4.473]
[1744913963447,0.075,1613.8,1613.7,5.71248]
[1744913963618,0.075,1613.8,1613.7,11.47698]
[1744913964113,7.45376,1614.2,1614.1,1.23917]
[1744913964317,7.45376,1614.2,1614.1,5.71217]
[1744913964615,7.45376,1614.2,1614.1,2.96652922]
[1744913965312,10.43016,1614.2,1614.1,6.97639922]
[1744913965620,10.43016,1614.2,1614.1,5.73722922]
[1744913966714,3.2078,1614.4,1614.3,1.23902]
[1744913966911,1.23902,1614.3,1614.2,4.19314]
[1744913967513,2.926,1614.4,1614.3,1.23902]
[1744913967910,4.16494,1614.4,1614.2,4.19313]
[1744913968110,4.16494,1614.4,1614.3,1.23902]
[1744913968318,4.16494,1614.4,1614.3,4.19312]
[1744913969220,4.23994,1614.4,1614.3,4.19312]
[1744913970625,2.7641,1614.7,1614.6,1.23879]
[1744913970825,6.0358,1614.8,1614.7,1.23871]
[1744913971120,6.0358,1614.8,1614.7,4.13491]
[1744913971623,3.2078,1614.8,1614.7,4.13491]
[1744913972824,4.06649,1615.0,1614.9,1.23856]
[1744913973025,4.06649,1615.0,1614.9,5.73256]
[1744913973323,4.14149,1615.0,1614.9,5.73256]
[1744913974223,2.903,1615.0,1614.9,5.73256]
[1744913975925,4.14148,1615.0,1614.9,5.73256]
[1744913977927,2.903,1615.0,1614.9,5.73256]
[1744913978431,4.14148,1615.0,1614.9,5.73256]
[1744913979333,2.903,1615.0,1614.9,5.73256]
[1744913980527,4.14148,1615.0,1614.9,5.73256]
[1744913982837,4.14148,1615.0,1614.9,4.494]
[1744913983024,1.23879,1614.6,1614.5,0.00929742]
[1744913983238,3.0792,1614.9,1614.8,1.23864]
[1744913983429,7.52557,1614.9,1614.8,1.23864]
[1744913984138,4.31777,1614.9,1614.8,1.23864]
[1744913984340,1.23864,1614.8,1614.7,8.53414]
[1744913984539,4.06634,1614.8,1614.7,5.73064]
[1744913984930,6.90694,1614.8,1614.7,5.73064]
[1744913985225,6.98194,1614.8,1614.7,5.73064]
[1744913985431,11.98194,1614.8,1614.7,4.492]
[1744913985632,1.23871,1614.7,1614.6,1.23876]
[1744913985835,10.26991,1614.7,1614.6,1.23876]
[1744913986138,10.34491,1614.7,1614.6,1.23876]
[1744913986347,1.23879,1614.6,1614.5,8.64190742]
[1744913986540,4.06649,1614.6,1614.5,4.50129742]
[1744913987239,4.14149,1614.6,1614.5,4.50129742]
[1744913988036,4.14149,1614.6,1614.5,5.74016742]
[1744913988441,4.14149,1614.6,1614.5,4.50129742]
[1744913988746,4.14149,1614.6,1614.5,0.00929742]
[1744913998543,4.14149,1614.6,1614.5,3.05239742]
[1744913999650,4.14149,1614.6,1614.5,4.29126742]
[1744913999851,1.31379,1614.6,1614.5,4.29126742]
[1744914000041,0.075,1614.6,1614.5,4.29126742]
[1744914000350,1.31379,1614.6,1614.5,4.29126742]
[1744914000741,1.31379,1614.6,1614.5,3.05239742]
[1744914000947,1.31379,1614.6,1614.5,4.29126742]
[1744914004450,1.31379,1614.6,1614.5,3.05239742]
[1744914004642,4.40929,1614.6,1614.5,3.05239742]
[1744914004845,7.32879,1614.6,1614.5,3.05239742]
[1744914007152,12.32879,1614.6,1614.5,0.00929742]
[1744914007355,1.23894,1614.4,1614.3,7.4645]
[1744914007659,1.2391,1614.2,1614.1,7.4405]
[1744914007960,4.4469,1614.2,1614.1,4.21167]
[1744914008148,4.5219,1614.2,1614.1,2.9725]
[1744914009950,7.4707,1614.2,1614.1,2.9725]
[1744914010252,4.5219,1614.2,1614.1,2.9725]
[1744914013256,8.64917828,1614.2,1614.1,2.9725]
[1744914013456,9.43918226,1614.2,1614.1,2.9725]
[1744914013962,9.43918226,1614.2,1614.1,4.21167]
[1744914014552,6.23138226,1614.2,1614.1,4.21167]
[1744914015052,4.99228226,1614.2,1614.1,9.21167]
[1744914015355,4.91728226,1614.2,1614.1,9.21167]
[1744914017366,8.22995595,1614.4,1614.1,11.07037]
[1744914017564,7.55917079,1614.4,1614.3,1.23902]
[1744914017750,4.12510427,1614.5,1614.4,1.23894]
[1744914017957,4.12510427,1614.5,1614.4,4.44674]
[1744914018262,4.12510427,1614.5,1614.4,9.44674]
[1744914019263,4.12510427,1614.5,1614.4,1.23894]
[1744914019969,5.36397427,1614.5,1614.4,1.23894]
[1744914020171,8.55217427,1614.5,1614.4,1.23894]
[1744914020566,7.31330427,1614.5,1614.4,1.23894]
[1744914020768,3.1882,1614.5,1614.4,1.23894]
[1744914021065,0.075,1614.5,1614.4,1.23894]
[1744914021364,0.075,1614.5,1614.4,4.32744]
[1744914021578,0.075,1614.5,1614.4,7.25424]
[1744914022166,4.44664,1614.6,1614.5,1.23887]
[1744914022464,4.44664,1614.6,1614.5,8.73727]
[1744914023168,4.52164,1614.6,1614.5,8.73727]
[1744914023466,4.52164,1614.6,1614.5,4.422]
[1744914023685,4.52164,1614.6,1614.5,5.66087]
[1744914024471,4.52164,1614.6,1614.5,8.59267]
[1744914024965,3.2828,1614.6,1614.3,4.421]
[1744914025165,1.23917,1614.1,1614.0,4.43029742]
[1744914025359,4.44697,1614.1,1614.0,0.00929742]
[1744914026268,10.27607,1614.1,1614.0,0.00929742]
[1744914026669,10.27607,1614.1,1614.0,1.24854742]
[1744914027064,10.27607,1614.1,1614.0,0.00929742]
[1744914027272,10.27607,1614.1,1614.0,1.24854742]
[1744914028074,10.27607,1614.1,1614.0,0.00929742]
[1744914028268,7.40737,1614.1,1614.0,1.24854742]
[1744914028574,4.52197,1614.1,1614.0,4.20464742]
[1744914031276,4.52197,1614.1,1614.0,0.00929742]
[1744914031482,7.49657,1614.1,1614.0,0.00929742]
[1744914032680,4.52197,1614.1,1614.0,1.24854742]
[1744914035281,7.61797,1614.1,1614.0,1.24854742]
[1744914035780,3.2828,1614.1,1614.0,1.24854742]
[1744914036077,0.075,1614.1,1614.0,4.17374742]
[1744914037280,3.2078,1614.3,1614.2,1.2391]
[1744914037476,16.45459246,1614.5,1614.4,1.23894]
[1744914037876,6.1708,1614.5,1614.4,4.12204]
[1744914038083,6.2458,1614.5,1614.4,4.12204]
[1744914038274,3.2828,1614.5,1614.4,4.12204]
[1744914038473,0.075,1614.5,1614.4,4.12204]
[1744914040186,17.69345246,1614.6,1614.5,1.23887]
[1744914040386,17.69345246,1614.6,1614.5,5.65987]
[1744914041080,17.76845246,1614.6,1614.5,5.65987]
[1744914041889,7.48466,1614.6,1614.5,5.65987]
[1744914043793,6.2458,1614.6,1614.5,5.65987]
[1744914044000,3.2828,1614.6,1614.5,5.65987]
[1744914044187,3.2078,1614.6,1614.5,5.65987]
[1744914044397,5.8255,1614.8,1614.7,1.23871]
[1744914044696,9.0333,1614.8,1614.7,1.23871]
[1744914045287,3.2828,1614.8,1614.7,1.23871]
[1744914045493,0.075,1614.8,1614.7,4.13951]
[1744914045693,0.075,1614.8,1614.7,7.15961]
[1744914046300,16.42749246,1615.0,1614.9,1.23856]
[1744914046500,6.1437,1615.0,1614.9,5.65856]
[1744914046993,7.38218,1615.0,1614.9,5.65856]
[1744914049103,7.45718,1615.0,1614.9,5.65856]
[1744914049904,6.2187,1615.0,1614.9,5.65856]
[1744914050103,3.2078,1615.0,1614.9,5.65856]
[1744914050402,4.44628,1615.0,1614.9,5.65856]
[1744914050699,2.9893,1615.0,1614.9,5.65856]
[1744914050902,0.075,1615.1,1615.0,1.23848]
[1744914051100,0.075,1615.1,1615.0,4.33598]
[1744914051299,7.43544,1615.2,1615.1,1.23841]
[1744914052004,17.454857,1615.4,1615.1,1.23841]
[1744914052198,17.454857,1615.4,1615.3,1.23825]
[1744914052199,8.243857,1615.4,1615.3,1.23825]
[1744914052393,11.451657,1615.4,1615.3,1.23825]
[1744914052598,12.689837,1615.4,1615.3,3.0613]
[1744914052810,1.23841,1615.1,1615.0,4.419]
[1744914053297,1.31341,1615.1,1615.0,5.65748]
[1744914053497,4.21761,1615.1,1615.0,4.419]
[1744914053714,4.21761,1615.1,1615.0,5.65748]
[1744914054307,4.21761,1615.1,1615.0,4.419]
[1744914055210,4.21761,1615.1,1615.0,5.65748]
[1744914055406,4.21761,1615.1,1615.0,4.419]
[1744914056510,4.21761,1615.1,1615.0,5.65748]
[1744914057104,0.075,1615.1,1615.0,5.65748]
[1744914057414,0.075,1615.1,1615.0,10.65748]
[1744914058107,1.23829,1615.3,1615.0,9.419]
[1744914058311,3.0973,1615.3,1615.2,1.23833]
[1744914058609,3.2078,1615.3,1615.2,1.23833]
[1744914058908,6.3051,1615.3,1615.2,1.23833]
[1744914059103,6.3801,1615.3,1615.2,7.39083]
[1744914059309,0.075,1615.3,1615.2,7.39083]
[1744914060211,3.0973,1615.4,1615.3,1.23825]
[1744914060410,6.3051,1615.4,1615.3,8.72915]
[1744914060604,3.2078,1615.4,1615.3,8.72915]
[1744914060810,18.893907,1615.6,1615.5,1.2381]
[1744914061111,18.968907,1615.6,1615.5,1.2381]
[1744914061311,14.623957,1615.6,1615.5,1.2381]
[1744914062011,12.654177,1615.6,1615.5,1.2381]
[1744914062210,14.623957,1615.6,1615.5,1.2381]
[1744914062409,6.3801,1615.6,1615.5,1.2381]
[1744914063113,6.3051,1615.6,1615.5,1.2381]
[1744914063930,7.54312,1615.6,1615.5,1.2381]
[1744914064414,6.3051,1615.6,1615.5,1.2381]
[1744914065510,7.54312,1615.6,1615.5,1.2381]
[1744914065899,9.4693,1615.6,1615.5,1.2381]
[1744914066100,11.451657,1616.0,1615.7,1.23795]
[1744914066313,11.451657,1616.0,1615.9,1.23779]
[1744914066611,3.2078,1616.0,1615.9,1.23779]
[1744914066814,3.2078,1616.0,1615.9,4.17979]
[1744914067311,3.2078,1616.0,1615.9,7.12699]
[1744914069510,3.2078,1616.0,1615.9,4.17979]
[1744914069914,3.2078,1616.0,1615.9,1.23779]
[1744914070107,6.4213,1616.0,1615.9,1.23779]
[1744914070509,6.4213,1616.0,1615.9,4.15349]
[1744914070915,6.4213,1616.0,1615.9,1.23779]
[1744914071110,9.3855,1616.0,1615.8,1.24710742]
[1744914071420,3.1385,1615.9,1615.8,5.66216742]
[1744914071811,9.37629,1615.9,1615.8,4.42429742]
[1744914072116,1.23793,1615.8,1615.6,5.653]
[1744914072422,1.23811,1615.5,1615.4,1.23818]
[1744914072614,4.44591,1615.5,1615.3,1.2382]
[1744914072917,10.39558,1615.4,1615.3,1.2382]
[1744914073118,10.47058,1615.4,1615.3,1.2382]
[1744914073713,1.23825,1615.3,1615.2,0.00929742]
[1744914073918,7.50385,1615.3,1615.2,0.00929742]
[1744914074212,6.3406,1615.3,1615.2,1.24762742]
[1744914075717,7.57885,1615.3,1615.2,1.24762742]
[1744914076422,6.3406,1615.3,1615.2,1.24762742]
[1744914077027,6.3406,1615.3,1615.2,0.00929742]
[1744914077319,6.3406,1615.3,1614.5,1.23881]
[1744914077320,11.3406,1615.3,1614.5,1.23881]
[1744914077529,1.23887,1614.5,1614.3,4.415]
[1744914077714,7.67854,1614.4,1614.3,4.415]
[1744914077925,7.67854,1614.4,1614.0,6.1887]
[1744914077926,1.2391,1614.2,1614.1,5.65412]
[1744914078123,1.23917,1614.1,1614.0,1.23925]
[1744914078428,3.2318,1614.1,1614.0,1.24854742]
[1744914078625,3.2318,1614.1,1614.0,4.24664742]
[1744914079226,3.3068,1614.1,1614.0,4.24664742]
[1744914081227,0.00929742,1614.3,1614.2,1.2391]
[1744914081430,0.00929742,1614.3,1614.2,5.6551]
[1744914081625,7.42e-06,1614.3,1614.2,13.8078]
[1744914081924,7.42e-06,1614.3,1614.2,17.0297]
[1744914082142,6.15633481,1614.7,1614.6,1.23879]
[1744914082427,6.15633481,1614.7,1614.6,5.65479]
[1744914083125,6.23133481,1614.7,1614.6,5.65479]
[1744914084330,6.15633481,1614.7,1614.6,5.65479]
[1744914085032,0.00929742,1614.8,1614.7,1.23871]
[1744914085336,0.08429742,1614.8,1614.7,4.23481]
[1744914086935,1.32293742,1614.8,1614.7,1.23871]
[1744914087228,4.53073742,1614.8,1614.7,1.23871]
[1744914087431,3.29209742,1614.8,1614.7,1.23871]
[1744914087634,4.53073742,1614.8,1614.7,1.23871]
[1744914087926,6.29319742,1614.8,1614.7,1.23871]
[1744914089126,3.08539742,1614.8,1614.7,1.23871]
[1744914089322,3.08539742,1614.8,1614.7,4.49731]
[1744914091329,4.32403742,1614.8,1614.7,1.23871]
[1744914091529,3.08539742,1614.8,1614.7,1.23871]
[1744914092127,7.53183742,1614.8,1614.7,4.30731]
[1744914092326,7.53183742,1614.8,1614.7,1.23871]
[1744914092530,6.29319742,1614.8,1614.7,1.23871]
[1744914092723,7.53183742,1614.8,1614.7,1.23871]
[1744914093228,4.32403742,1614.8,1614.7,1.23871]
[1744914093425,7.53183742,1614.8,1614.7,1.23871]
[1744914093625,1.23871,1614.7,1614.6,4.416]
[1744914093874,7.50371,1614.7,1614.6,4.416]
[1744914094126,7.57871,1614.7,1614.6,4.416]
[1744914094945,10.58001,1614.7,1614.6,4.416]
[1744914097230,1.23879,1614.6,1614.5,1.23881]
[1744914097431,6.1988,1614.6,1614.5,1.23881]
[1744914097631,7.43759,1614.6,1614.5,1.23881]
[1744914098135,7.51259,1614.6,1614.5,1.23881]
[1744914100234,1.23903,1614.4,1614.3,1.23898]
[1744914100431,4.44683,1614.4,1614.3,1.23898]
[1744914100739,1.23903,1614.4,1614.3,1.23898]
[1744914100939,1.23903,1614.4,1614.3,4.53428]
[1744914101139,1.31403,1614.4,1614.3,4.53428]
[1744914101434,1.31394,1614.4,1614.3,4.53428]
[1744914101742,1.31394,1614.4,1614.2,4.415]
[1744914101743,1.23902,1614.3,1614.2,4.415]
[1744914101938,4.31652,1614.3,1614.2,4.415]
[1744914102140,7.43442,1614.3,1614.2,4.415]
[1744914103142,7.43442,1614.3,1614.2,5.6541]
[1744914103439,7.43442,1614.3,1614.2,4.415]
[1744914103637,7.43442,1614.3,1614.2,5.6541]
[1744914104141,7.43442,1614.3,1614.2,4.415]
[1744914104557,7.43442,1614.3,1614.2,5.6541]
[1744914105139,0.075,1614.3,1614.2,5.6541]
[1744914105439,0.075,1614.3,1614.2,13.9137]
[1744914106134,1.23897,1614.4,1614.3,1.23902]
[1744914106444,1.23897,1614.4,1614.3,4.49862]
[1744914107334,1.31397,1614.4,1614.3,4.49862]
[1744914107840,3.1356,1614.4,1614.3,4.49862]
[1744914108042,4.37454,1614.4,1614.3,4.49862]
[1744914108230,3.1356,1614.4,1614.3,4.49862]
[1744914108941,0.075,1614.4,1614.3,4.49862]
[1744914109139,7.50725,1614.6,1614.5,1.23887]
[1744914109339,1.23887,1614.5,1614.4,7.53698]
[1744914109533,4.29957,1614.5,1614.4,6.2981]
[1744914109838,4.29957,1614.5,1614.4,1.23894]
[1744914110044,1.23902,1614.4,1614.3,1.23898]
[1744914110343,4.29972,1614.4,1614.3,1.23898]
[1744914110549,4.29972,1614.4,1614.3,4.36178]
[1744914111137,4.37472,1614.4,1614.3,4.36178]
[1744914111451,4.37472,1614.4,1614.3,8.77778]
[1744914113150,7.58252,1614.4,1614.3,8.77778]
[1744914113443,7.58252,1614.4,1614.3,5.65498]
[1744914115245,1.2391,1614.3,1614.1,3.1644]
[1744914115442,4.5099,1614.3,1614.2,4.416]
[1744914115741,1.23917,1614.1,1614.0,0.00929742]
[1744914115943,1.23917,1614.1,1614.0,4.42529742]
[1744914116147,1.31417,1614.1,1614.0,4.42529742]